[Event "Titled Tuesday Blitz November 9 2021"]
[White "Artemenko, Oleg"]
[Black "Cunjalo, Faris"]
[WhiteFideId "14201798"]
[BlackFideId "14410710"]
[WhiteElo "2287"]
[BlackElo "2263"]
[Result "1-0"]
[Round "10"]
[TimeControl "180+1"]
[Date "2021.11.09"]
[WhiteClock "0:00:11"]
[BlackClock "0:00:01"]

1. d4 {[%clk 0:03:00]}  f5 {[%clk 0:03:00]} 2. Nc3 {[%clk 0:03:01]}  Nf6 {[%clk 0:02:56]} 3. Bg5 {[%clk 0:03:01]}  g6 {[%clk 0:02:56]} 4. Bxf6 {[%clk 0:02:58]}  exf6 {[%clk 0:02:56]} 5. e4 {[%clk 0:02:58]}  fxe4 {[%clk 0:02:56]} 6. Nxe4 {[%clk 0:02:59]}  d5 {[%clk 0:02:55]} 7. Ng3 {[%clk 0:02:59]}  Bg7 {[%clk 0:02:47]} 8. Bd3 {[%clk 0:02:50]}  O-O {[%clk 0:02:44]} 9. N1e2 {[%clk 0:02:50]}  f5 {[%clk 0:02:40]} 10. c3 {[%clk 0:02:49]}  f4 {[%clk 0:02:37]} 11. Nf1 {[%clk 0:02:49]}  Qd6 {[%clk 0:02:16]} 12. Nd2 {[%clk 0:02:40]}  Nd7 {[%clk 0:02:15]} 13. Nf3 {[%clk 0:02:40]}  Nf6 {[%clk 0:02:09]} 14. Qb3 {[%clk 0:02:38]}  Kh8 {[%clk 0:01:55]} 15. O-O {[%clk 0:02:37]}  b6 {[%clk 0:01:51]} 16. Rfe1 {[%clk 0:02:36]}  c5 {[%clk 0:01:51]} 17. Qd1 {[%clk 0:02:27]}  Nh5 {[%clk 0:01:36]} 18. h3 {[%clk 0:02:15]}  Bb7 {[%clk 0:01:32]} 19. Qd2 {[%clk 0:02:02]}  Rae8 {[%clk 0:01:26]} 20. Rad1 {[%clk 0:02:02]}  c4 {[%clk 0:01:17]} 21. Bb1 {[%clk 0:02:01]}  Re7 {[%clk 0:01:07]} 22. Kf1 {[%clk 0:01:28]}  Rfe8 {[%clk 0:01:06]} 23. Neg1 {[%clk 0:01:25]}  Re4 {[%clk 0:00:47]} 24. Bxe4 {[%clk 0:01:11]}  dxe4 {[%clk 0:00:47]} 25. Ne5 {[%clk 0:01:11]}  Qd5 {[%clk 0:00:39]} 26. Qc2 {[%clk 0:01:07]}  Rf8 {[%clk 0:00:33]} 27. b3 {[%clk 0:00:54]}  e3 {[%clk 0:00:20]} 28. Ngf3 {[%clk 0:00:53]}  b5 {[%clk 0:00:16]} 29. bxc4 {[%clk 0:00:51]}  bxc4 {[%clk 0:00:17]} 30. fxe3 {[%clk 0:00:45]}  fxe3 {[%clk 0:00:14]} 31. Rxe3 {[%clk 0:00:41]}  Nf4 {[%clk 0:00:14]} 32. Rb1 {[%clk 0:00:35]}  Ba8 {[%clk 0:00:06]} 33. Qf2 {[%clk 0:00:15]}  Bh6 {[%clk 0:00:04]} 34. Qh4 {[%clk 0:00:15]}  Bg7 {[%clk 0:00:02]} 35. Kg1 {[%clk 0:00:14]}  Ne6 {[%clk 0:00:01]} 36. Rf1 {[%clk 0:00:14]}  Nf4 {[%clk 0:00:02]} 37. Ne1 {[%clk 0:00:12]}  Ne6 {[%clk 0:00:01]} 38. Nxg6+ {[%clk 0:00:11]} 1-0


[Site "https://www.chess.com"]

[Event "Titled Tuesday Blitz November 9 2021"]
[White "Babazada, Khazar"]
[Black "Maghsoodloo, Parham"]
[WhiteFideId "13413554"]
[BlackFideId "12539929"]
[WhiteElo "2302"]
[BlackElo "2601"]
[Result "0-1"]
[Round "10"]
[TimeControl "180+1"]
[Date "2021.11.09"]
[WhiteClock "0:00:03"]
[BlackClock "0:00:27"]

1. e4 {[%clk 0:03:00]}  c5 {[%clk 0:02:49]} 2. Nf3 {[%clk 0:03:00]}  Nc6 {[%clk 0:02:50]} 3. d4 {[%clk 0:02:59]}  cxd4 {[%clk 0:02:50]} 4. Nxd4 {[%clk 0:02:59]}  e5 {[%clk 0:02:51]} 5. Nb5 {[%clk 0:02:59]}  d6 {[%clk 0:02:52]} 6. N1c3 {[%clk 0:02:56]}  a6 {[%clk 0:02:52]} 7. Na3 {[%clk 0:02:56]}  Be6 {[%clk 0:02:52]} 8. Nc4 {[%clk 0:02:54]}  b5 {[%clk 0:02:52]} 9. Ne3 {[%clk 0:02:53]}  Nf6 {[%clk 0:02:53]} 10. a3 {[%clk 0:02:51]}  g6 {[%clk 0:02:53]} 11. g3 {[%clk 0:02:48]}  Bg7 {[%clk 0:02:53]} 12. Bg2 {[%clk 0:02:47]}  O-O {[%clk 0:02:53]} 13. O-O {[%clk 0:02:45]}  Nd4 {[%clk 0:02:54]} 14. Ncd5 {[%clk 0:02:42]}  Bxd5 {[%clk 0:02:51]} 15. exd5 {[%clk 0:02:43]}  Qd7 {[%clk 0:02:48]} 16. c3 {[%clk 0:02:43]}  Nf5 {[%clk 0:02:48]} 17. Bh3 {[%clk 0:02:43]}  Nxe3 {[%clk 0:02:48]} 18. Bxd7 {[%clk 0:02:29]}  Nxd1 {[%clk 0:02:48]} 19. Bc6 {[%clk 0:02:29]}  Nxf2 {[%clk 0:02:44]} 20. Bxa8 {[%clk 0:02:26]}  Nh3+ {[%clk 0:02:40]} 21. Kg2 {[%clk 0:02:25]}  Rxa8 {[%clk 0:02:41]} 22. Kxh3 {[%clk 0:02:23]}  Nxd5 {[%clk 0:02:41]} 23. Rd1 {[%clk 0:02:20]}  Nb6 {[%clk 0:02:38]} 24. Rxd6 {[%clk 0:02:18]}  Na4 {[%clk 0:02:39]} 25. Rb1 {[%clk 0:02:13]}  Bf8 {[%clk 0:02:29]} 26. Rd1 {[%clk 0:02:09]}  Bc5 {[%clk 0:02:21]} 27. Bg5 {[%clk 0:02:06]}  Kg7 {[%clk 0:02:21]} 28. Rd7 {[%clk 0:02:01]}  h6 {[%clk 0:02:21]} 29. Bd8 {[%clk 0:01:59]}  Kf8 {[%clk 0:02:11]} 30. Ba5 {[%clk 0:01:53]}  Be7 {[%clk 0:02:06]} 31. Bb4 {[%clk 0:01:48]}  Bxb4 {[%clk 0:02:05]} 32. cxb4 {[%clk 0:01:48]}  Nb6 {[%clk 0:02:01]} 33. Rb7 {[%clk 0:01:48]}  Nd5 {[%clk 0:01:47]} 34. Rf1 {[%clk 0:01:48]}  f5 {[%clk 0:01:48]} 35. Rd1 {[%clk 0:01:49]}  Rd8 {[%clk 0:01:48]} 36. Rc1 {[%clk 0:01:37]}  Ne7 {[%clk 0:01:20]} 37. Rcc7 {[%clk 0:01:36]}  Re8 {[%clk 0:01:19]} 38. Kg2 {[%clk 0:01:34]}  e4 {[%clk 0:01:20]} 39. Kf2 {[%clk 0:01:35]}  g5 {[%clk 0:01:20]} 40. Rc5 {[%clk 0:01:30]}  f4 {[%clk 0:01:19]} 41. gxf4 {[%clk 0:01:30]}  gxf4 {[%clk 0:01:20]} 42. Re5 {[%clk 0:01:31]}  Ng6 {[%clk 0:01:16]} 43. Rxe8+ {[%clk 0:01:28]}  Kxe8 {[%clk 0:01:17]} 44. Rb6 {[%clk 0:01:29]}  Kf7 {[%clk 0:01:16]} 45. Rxa6 {[%clk 0:01:29]}  Ne5 {[%clk 0:01:16]} 46. a4 {[%clk 0:01:29]}  Nd3+ {[%clk 0:01:01]} 47. Ke2 {[%clk 0:01:27]}  f3+ {[%clk 0:00:57]} 48. Kd2 {[%clk 0:01:14]}  f2 {[%clk 0:00:54]} 49. Ke2 {[%clk 0:01:14]}  e3 {[%clk 0:00:53]} 50. axb5 {[%clk 0:00:26]}  Nc1+ {[%clk 0:00:52]} 51. Kf1 {[%clk 0:00:27]}  Nb3 {[%clk 0:00:53]} 52. Kg2 {[%clk 0:00:15]}  Nd2 {[%clk 0:00:46]} 53. Ra1 {[%clk 0:00:15]}  Ke7 {[%clk 0:00:46]} 54. b6 {[%clk 0:00:11]}  Kd7 {[%clk 0:00:46]} 55. Rc1 {[%clk 0:00:12]}  Ne4 {[%clk 0:00:31]} 56. Kf3 {[%clk 0:00:07]}  Nd2+ {[%clk 0:00:28]} 57. Ke2 {[%clk 0:00:07]}  Nb3 {[%clk 0:00:28]} 58. Rd1+ {[%clk 0:00:04]}  Nd2 {[%clk 0:00:28]} 59. b7 {[%clk 0:00:03]}  Kc7 {[%clk 0:00:28]} 60. Rc1+ {[%clk 0:00:03]}  Kxb7 {[%clk 0:00:28]} 61. Kxe3 {[%clk 0:00:03]}  f1=Q {[%clk 0:00:27]} 62. Rxf1 {[%clk 0:00:03]}  Nxf1+ {[%clk 0:00:28]} 63. Kd4 {[%clk 0:00:02]}  Nxh2 {[%clk 0:00:28]} 64. Ke4 {[%clk 0:00:02]}  Ng4 {[%clk 0:00:27]} 65. Kf5 {[%clk 0:00:02]}  h5 {[%clk 0:00:26]} 66. Kg5 {[%clk 0:00:03]}  Nf6 {[%clk 0:00:27]} 0-1


[Site "https://www.chess.com"]

[Event "Titled Tuesday Blitz November 9 2021"]
[White "FGHSMN"]
[Black "Dzhumagaliev, Yan"]
[BlackFideId "24100110"]
[WhiteElo "2670"]
[BlackElo "2507"]
[Result "0-1"]
[Round "10"]
[TimeControl "180+1"]
[Date "2021.11.09"]
[WhiteClock "0:00:06"]
[BlackClock "0:00:09"]

1. b3 {[%clk 0:03:00]}  h5 {[%clk 0:03:00]} 2. Bb2 {[%clk 0:03:00]}  h4 {[%clk 0:03:01]} 3. c4 {[%clk 0:02:57]}  c6 {[%clk 0:03:01]} 4. Nf3 {[%clk 0:02:55]}  d5 {[%clk 0:03:02]} 5. e3 {[%clk 0:02:55]}  h3 {[%clk 0:03:02]} 6. g3 {[%clk 0:02:55]}  Bg4 {[%clk 0:03:02]} 7. Be2 {[%clk 0:02:56]}  Nd7 {[%clk 0:03:03]} 8. d4 {[%clk 0:02:56]}  e6 {[%clk 0:03:03]} 9. Nbd2 {[%clk 0:02:56]}  f5 {[%clk 0:03:02]} 10. Qc2 {[%clk 0:02:56]}  Ngf6 {[%clk 0:03:03]} 11. O-O-O {[%clk 0:02:56]}  Qa5 {[%clk 0:03:02]} 12. Kb1 {[%clk 0:02:55]}  Ne4 {[%clk 0:03:00]} 13. Nxe4 {[%clk 0:02:55]}  fxe4 {[%clk 0:03:01]} 14. Ng5 {[%clk 0:02:53]}  Bxe2 {[%clk 0:02:15]} 15. Qxe2 {[%clk 0:02:54]}  dxc4 {[%clk 0:02:16]} 16. Nxe6 {[%clk 0:02:43]}  cxb3 {[%clk 0:02:17]} 17. axb3 {[%clk 0:02:42]}  Rh6 {[%clk 0:02:16]} 18. Qg4 {[%clk 0:02:37]}  Nf6 {[%clk 0:02:16]} 19. Qf4 {[%clk 0:02:21]}  Kf7 {[%clk 0:02:00]} 20. d5 {[%clk 0:01:46]}  cxd5 {[%clk 0:01:57]} 21. Ng5+ {[%clk 0:01:34]}  Kg8 {[%clk 0:01:57]} 22. Qf5 {[%clk 0:01:32]}  Re8 {[%clk 0:01:24]} 23. Nxh3 {[%clk 0:01:15]}  Qb5 {[%clk 0:00:50]} 24. Bxf6 {[%clk 0:01:10]}  gxf6 {[%clk 0:00:51]} 25. Kb2 {[%clk 0:01:03]}  Qe2+ {[%clk 0:00:42]} 26. Kb1 {[%clk 0:00:57]}  Re5 {[%clk 0:00:32]} 27. Qc8 {[%clk 0:00:57]}  Qb5 {[%clk 0:00:32]} 28. Kb2 {[%clk 0:00:54]}  f5 {[%clk 0:00:19]} 29. Ng5 {[%clk 0:00:19]}  Rb6 {[%clk 0:00:18]} 30. Qc3 {[%clk 0:00:19]}  Bg7 {[%clk 0:00:18]} 31. Ka2 {[%clk 0:00:17]}  Re8 {[%clk 0:00:16]} 32. Rd4 {[%clk 0:00:16]}  Bxd4 {[%clk 0:00:14]} 33. exd4 {[%clk 0:00:16]}  Qe2+ {[%clk 0:00:13]} 34. Ka3 {[%clk 0:00:13]}  Ra6+ {[%clk 0:00:10]} 35. Kb4 {[%clk 0:00:14]}  Rc6 {[%clk 0:00:10]} 36. Qe3 {[%clk 0:00:09]}  Qa2 {[%clk 0:00:09]} 37. Nh3 {[%clk 0:00:07]}  Rb6+ {[%clk 0:00:09]} 38. Kc5 {[%clk 0:00:06]}  Qa5# {[%clk 0:00:09]} 0-1


[Site "https://www.chess.com"]

[Event "Titled Tuesday Blitz November 9 2021"]
[White "Gaehwiler, Gabriel"]
[Black "Visakh N R"]
[WhiteFideId "1314530"]
[BlackFideId "25012223"]
[WhiteElo "2320"]
[BlackElo "2454"]
[Result "0-1"]
[Round "10"]
[TimeControl "180+1"]
[Date "2021.11.09"]
[WhiteClock "0:00:15"]
[BlackClock "0:01:12"]

1. d4 {[%clk 0:03:00]}  Nf6 {[%clk 0:02:55]} 2. Nf3 {[%clk 0:03:00]}  e6 {[%clk 0:02:55]} 3. g3 {[%clk 0:02:59]}  c5 {[%clk 0:02:54]} 4. c4 {[%clk 0:02:58]}  cxd4 {[%clk 0:02:52]} 5. Nxd4 {[%clk 0:02:59]}  Bb4+ {[%clk 0:02:51]} 6. Bd2 {[%clk 0:02:53]}  Qb6 {[%clk 0:02:49]} 7. Bxb4 {[%clk 0:02:47]}  Qxb4+ {[%clk 0:02:49]} 8. Qd2 {[%clk 0:02:47]}  Qxc4 {[%clk 0:02:47]} 9. Bg2 {[%clk 0:02:47]}  Nc6 {[%clk 0:02:45]} 10. Nc2 {[%clk 0:02:43]}  O-O {[%clk 0:02:43]} 11. O-O {[%clk 0:02:43]}  d5 {[%clk 0:02:43]} 12. Rc1 {[%clk 0:02:41]}  Qa6 {[%clk 0:02:41]} 13. b4 {[%clk 0:02:39]}  Qb6 {[%clk 0:02:34]} 14. a4 {[%clk 0:02:37]}  Bd7 {[%clk 0:02:33]} 15. a5 {[%clk 0:02:36]}  Qd8 {[%clk 0:02:32]} 16. Nd4 {[%clk 0:02:30]}  Rc8 {[%clk 0:02:30]} 17. Na3 {[%clk 0:02:28]}  Qe7 {[%clk 0:02:26]} 18. Nxc6 {[%clk 0:02:26]}  Bxc6 {[%clk 0:02:27]} 19. Qd4 {[%clk 0:02:01]}  a6 {[%clk 0:02:24]} 20. Rab1 {[%clk 0:01:56]}  Rfd8 {[%clk 0:02:06]} 21. f4 {[%clk 0:01:47]}  Nd7 {[%clk 0:02:03]} 22. Nc2 {[%clk 0:01:42]}  Bb5 {[%clk 0:01:51]} 23. Bf3 {[%clk 0:01:09]}  Rc4 {[%clk 0:01:49]} 24. Qd2 {[%clk 0:01:09]}  Rdc8 {[%clk 0:01:49]} 25. e3 {[%clk 0:01:02]}  Ba4 {[%clk 0:01:34]} 26. Nd4 {[%clk 0:00:55]}  Rxc1+ {[%clk 0:01:34]} 27. Rxc1 {[%clk 0:00:56]}  Rxc1+ {[%clk 0:01:35]} 28. Qxc1 {[%clk 0:00:57]}  Qxb4 {[%clk 0:01:35]} 29. Qc8+ {[%clk 0:00:57]}  Nf8 {[%clk 0:01:35]} 30. f5 {[%clk 0:00:32]}  e5 {[%clk 0:01:27]} 31. Bxd5 {[%clk 0:00:19]}  exd4 {[%clk 0:01:25]} 32. Qc7 {[%clk 0:00:16]}  Qe1+ {[%clk 0:01:20]} 33. Kg2 {[%clk 0:00:16]}  Qe2+ {[%clk 0:01:20]} 34. Kg1 {[%clk 0:00:15]}  Qxe3+ {[%clk 0:01:20]} 35. Kg2 {[%clk 0:00:15]}  Qe2+ {[%clk 0:01:10]} 36. Kg1 {[%clk 0:00:15]}  Qd1+ {[%clk 0:01:10]} 37. Kg2 {[%clk 0:00:15]}  Qc2+ {[%clk 0:01:11]} 38. Qxc2 {[%clk 0:00:14]}  Bxc2 {[%clk 0:01:12]} 39. Bxb7 {[%clk 0:00:15]}  Bd3 {[%clk 0:01:12]} 0-1


[Site "https://www.chess.com"]

[Event "Titled Tuesday Blitz November 9 2021"]
[White "Hakobyan, Aram"]
[Black "Manafov, Vugar"]
[WhiteFideId "13306677"]
[BlackFideId "13410814"]
[WhiteElo "2557"]
[BlackElo "2277"]
[Result "0-1"]
[Round "10"]
[TimeControl "180+1"]
[Date "2021.11.09"]
[WhiteClock "0:00:02"]
[BlackClock "0:00:07"]

1. b3 {[%clk 0:03:00]}  Nf6 {[%clk 0:03:00]} 2. Bb2 {[%clk 0:03:01]}  e6 {[%clk 0:03:01]} 3. Nf3 {[%clk 0:03:00]}  d5 {[%clk 0:03:02]} 4. e3 {[%clk 0:03:00]}  Nbd7 {[%clk 0:03:02]} 5. c4 {[%clk 0:03:00]}  c6 {[%clk 0:03:03]} 6. Nc3 {[%clk 0:03:00]}  Bd6 {[%clk 0:03:02]} 7. Rg1 {[%clk 0:02:57]}  h5 {[%clk 0:02:56]} 8. h3 {[%clk 0:02:53]}  h4 {[%clk 0:02:55]} 9. Qc2 {[%clk 0:02:52]}  Qe7 {[%clk 0:02:54]} 10. O-O-O {[%clk 0:02:51]}  a6 {[%clk 0:02:54]} 11. Kb1 {[%clk 0:02:49]}  b5 {[%clk 0:02:53]} 12. Nd4 {[%clk 0:02:49]}  Bb7 {[%clk 0:02:50]} 13. cxd5 {[%clk 0:02:47]}  cxd5 {[%clk 0:02:50]} 14. Rc1 {[%clk 0:02:41]}  Rc8 {[%clk 0:02:47]} 15. Qd1 {[%clk 0:02:40]}  Nc5 {[%clk 0:02:38]} 16. f4 {[%clk 0:02:30]}  Kd7 {[%clk 0:02:24]} 17. Ncxb5 {[%clk 0:02:27]}  axb5 {[%clk 0:02:23]} 18. Bxb5+ {[%clk 0:02:28]}  Kd8 {[%clk 0:02:23]} 19. b4 {[%clk 0:02:15]}  Ncd7 {[%clk 0:02:14]} 20. Qa4 {[%clk 0:02:11]}  Ra8 {[%clk 0:02:00]} 21. Qc2 {[%clk 0:01:56]}  Nb6 {[%clk 0:01:47]} 22. a3 {[%clk 0:01:41]}  Nc4 {[%clk 0:01:35]} 23. Bxc4 {[%clk 0:01:32]}  Rc8 {[%clk 0:01:36]} 24. Qb3 {[%clk 0:01:18]}  dxc4 {[%clk 0:01:35]} 25. Rxc4 {[%clk 0:01:18]}  Rxc4 {[%clk 0:01:32]} 26. Qxc4 {[%clk 0:01:19]}  Qc7 {[%clk 0:01:32]} 27. Qb5 {[%clk 0:01:15]}  Ke7 {[%clk 0:01:32]} 28. Rc1 {[%clk 0:01:13]}  Qd7 {[%clk 0:01:32]} 29. Qg5 {[%clk 0:01:13]}  Rg8 {[%clk 0:01:13]} 30. d3 {[%clk 0:01:12]}  Kf8 {[%clk 0:01:03]} 31. Qxh4 {[%clk 0:00:49]}  Ba6 {[%clk 0:01:00]} 32. Ka1 {[%clk 0:00:48]}  Bxd3 {[%clk 0:00:50]} 33. Rd1 {[%clk 0:00:48]}  Bc4 {[%clk 0:00:45]} 34. Nf3 {[%clk 0:00:45]}  Qe7 {[%clk 0:00:39]} 35. Be5 {[%clk 0:00:40]}  Bd5 {[%clk 0:00:30]} 36. Rc1 {[%clk 0:00:22]}  Ne8 {[%clk 0:00:30]} 37. Ng5 {[%clk 0:00:21]}  f6 {[%clk 0:00:26]} 38. Bxd6 {[%clk 0:00:19]}  Nxd6 {[%clk 0:00:26]} 39. Nf3 {[%clk 0:00:14]}  Kf7 {[%clk 0:00:21]} 40. Qh5+ {[%clk 0:00:09]}  g6 {[%clk 0:00:21]} 41. Qh4 {[%clk 0:00:10]}  Qa7 {[%clk 0:00:19]} 42. Rc3 {[%clk 0:00:09]}  Ne4 {[%clk 0:00:16]} 43. Rd3 {[%clk 0:00:08]}  Kg7 {[%clk 0:00:17]} 44. Qe1 {[%clk 0:00:06]}  Rc8 {[%clk 0:00:16]} 45. Nd4 {[%clk 0:00:04]}  Qa6 {[%clk 0:00:13]} 46. Qb1 {[%clk 0:00:04]}  Bc4 {[%clk 0:00:12]} 47. b5 {[%clk 0:00:04]}  Qa4 {[%clk 0:00:12]} 48. Nxe6+ {[%clk 0:00:02]}  Bxe6 {[%clk 0:00:11]} 49. b6 {[%clk 0:00:03]}  Nc3 {[%clk 0:00:09]} 50. Qb2 {[%clk 0:00:04]}  Nd1 {[%clk 0:00:07]} 51. Qd2 {[%clk 0:00:03]}  Rc2 {[%clk 0:00:06]} 52. Qxd1 {[%clk 0:00:04]}  Ra2+ {[%clk 0:00:07]} 53. Kb1 {[%clk 0:00:04]}  Qb5+ {[%clk 0:00:07]} 54. Rb3 {[%clk 0:00:05]}  Bxb3 {[%clk 0:00:07]} 55. Qd7+ {[%clk 0:00:02]}  Qxd7 {[%clk 0:00:07]} 0-1


[Site "https://www.chess.com"]

[Event "Titled Tuesday Blitz November 9 2021"]
[White "Jobava, Baadur"]
[Black "Kollars, Dmitrij"]
[WhiteFideId "13601520"]
[BlackFideId "12909572"]
[WhiteElo "2731"]
[BlackElo "2584"]
[Result "1/2-1/2"]
[Round "10"]
[TimeControl "180+1"]
[Date "2021.11.09"]
[WhiteClock "0:00:28"]
[BlackClock "0:00:14"]

1. e4 {[%clk 0:03:00]}  e5 {[%clk 0:02:59]} 2. d4 {[%clk 0:03:00]}  exd4 {[%clk 0:02:59]} 3. Nf3 {[%clk 0:03:00]}  Nc6 {[%clk 0:02:59]} 4. Nxd4 {[%clk 0:03:00]}  Nf6 {[%clk 0:02:58]} 5. Nxc6 {[%clk 0:03:01]}  bxc6 {[%clk 0:02:59]} 6. Bd3 {[%clk 0:03:01]}  d5 {[%clk 0:02:58]} 7. exd5 {[%clk 0:03:02]}  cxd5 {[%clk 0:02:59]} 8. O-O {[%clk 0:03:02]}  Be7 {[%clk 0:02:58]} 9. h3 {[%clk 0:03:02]}  O-O {[%clk 0:02:58]} 10. Nd2 {[%clk 0:03:03]}  Re8 {[%clk 0:02:51]} 11. Nf3 {[%clk 0:03:01]}  c5 {[%clk 0:02:34]} 12. Re1 {[%clk 0:02:59]}  Bb7 {[%clk 0:02:29]} 13. c3 {[%clk 0:02:52]}  a5 {[%clk 0:02:21]} 14. Bf4 {[%clk 0:02:45]}  Qb6 {[%clk 0:02:17]} 15. Qc2 {[%clk 0:02:39]}  h6 {[%clk 0:02:16]} 16. Re2 {[%clk 0:02:30]}  Bd6 {[%clk 0:02:16]} 17. Bxd6 {[%clk 0:02:29]}  Qxd6 {[%clk 0:02:17]} 18. Rae1 {[%clk 0:02:29]}  Rxe2 {[%clk 0:02:16]} 19. Qxe2 {[%clk 0:02:28]}  Bc6 {[%clk 0:02:00]} 20. Qe5 {[%clk 0:02:12]}  Qxe5 {[%clk 0:01:57]} 21. Nxe5 {[%clk 0:02:13]}  Be8 {[%clk 0:01:52]} 22. b3 {[%clk 0:02:06]}  Rb8 {[%clk 0:01:52]} 23. Bc2 {[%clk 0:01:56]}  a4 {[%clk 0:01:35]} 24. bxa4 {[%clk 0:01:55]}  Rb2 {[%clk 0:01:36]} 25. Ng4 {[%clk 0:01:54]}  Kf8 {[%clk 0:01:29]} 26. Nxf6 {[%clk 0:01:54]}  gxf6 {[%clk 0:01:30]} 27. Bb3 {[%clk 0:01:43]}  c4 {[%clk 0:01:30]} 28. Bd1 {[%clk 0:01:43]}  Rxa2 {[%clk 0:01:23]} 29. Bf3 {[%clk 0:01:42]}  Bc6 {[%clk 0:01:14]} 30. Rd1 {[%clk 0:01:42]}  Rxa4 {[%clk 0:01:10]} 31. Bxd5 {[%clk 0:01:42]}  Bxd5 {[%clk 0:01:11]} 32. Rxd5 {[%clk 0:01:42]}  Ra3 {[%clk 0:01:12]} 33. Rc5 {[%clk 0:01:42]}  Rxc3 {[%clk 0:01:12]} 34. Rc7 {[%clk 0:01:41]}  Kg7 {[%clk 0:01:08]} 35. g4 {[%clk 0:01:40]}  Rxh3 {[%clk 0:00:46]} 36. Rxc4 {[%clk 0:01:39]}  Rh4 {[%clk 0:00:47]} 37. Rf4 {[%clk 0:01:25]}  h5 {[%clk 0:00:34]} 38. f3 {[%clk 0:01:24]}  hxg4 {[%clk 0:00:30]} 39. fxg4 {[%clk 0:01:24]}  Rh3 {[%clk 0:00:26]} 40. Kg2 {[%clk 0:01:24]}  Ra3 {[%clk 0:00:26]} 41. Rf3 {[%clk 0:01:20]}  Ra5 {[%clk 0:00:21]} 42. Kg3 {[%clk 0:01:19]}  Kg6 {[%clk 0:00:22]} 43. Kh4 {[%clk 0:01:18]}  Ra4 {[%clk 0:00:21]} 44. Rf5 {[%clk 0:01:14]}  Ra1 {[%clk 0:00:21]} 45. Rb5 {[%clk 0:01:12]}  Rh1+ {[%clk 0:00:19]} 46. Kg3 {[%clk 0:01:12]}  Re1 {[%clk 0:00:20]} 47. Rb8 {[%clk 0:01:09]}  Re5 {[%clk 0:00:20]} 48. Kf4 {[%clk 0:01:06]}  Ra5 {[%clk 0:00:19]} 49. Rg8+ {[%clk 0:01:05]}  Kh7 {[%clk 0:00:19]} 50. Rb8 {[%clk 0:01:04]}  Kg7 {[%clk 0:00:20]} 51. Rc8 {[%clk 0:01:03]}  Rb5 {[%clk 0:00:19]} 52. Ra8 {[%clk 0:01:02]}  Rb4+ {[%clk 0:00:19]} 53. Kf5 {[%clk 0:00:59]}  Rb1 {[%clk 0:00:20]} 54. Kf4 {[%clk 0:00:57]}  Rf1+ {[%clk 0:00:20]} 55. Kg3 {[%clk 0:00:57]}  Kh7 {[%clk 0:00:20]} 56. Rf8 {[%clk 0:00:54]}  Kg7 {[%clk 0:00:19]} 57. Ra8 {[%clk 0:00:53]}  f5 {[%clk 0:00:17]} 58. gxf5 {[%clk 0:00:53]}  Rxf5 {[%clk 0:00:18]} 59. Ra6 {[%clk 0:00:51]}  Re5 {[%clk 0:00:17]} 60. Kf4 {[%clk 0:00:51]}  Rc5 {[%clk 0:00:17]} 61. Rb6 {[%clk 0:00:50]}  Rc4+ {[%clk 0:00:17]} 62. Kf5 {[%clk 0:00:49]}  Rc1 {[%clk 0:00:18]} 63. Ra6 {[%clk 0:00:48]}  Rf1+ {[%clk 0:00:18]} 64. Kg5 {[%clk 0:00:47]}  f6+ {[%clk 0:00:18]} 65. Kg4 {[%clk 0:00:47]}  Kg6 {[%clk 0:00:18]} 66. Ra5 {[%clk 0:00:46]}  f5+ {[%clk 0:00:18]} 67. Kg3 {[%clk 0:00:46]}  Kg5 {[%clk 0:00:18]} 68. Ra4 {[%clk 0:00:45]}  Rc1 {[%clk 0:00:18]} 69. Ra3 {[%clk 0:00:41]}  Rh1 {[%clk 0:00:17]} 70. Kg2 {[%clk 0:00:41]}  Rh4 {[%clk 0:00:15]} 71. Kg3 {[%clk 0:00:35]}  f4+ {[%clk 0:00:13]} 72. Kg2 {[%clk 0:00:34]}  Kg4 {[%clk 0:00:13]} 73. Rb3 {[%clk 0:00:32]}  Rh6 {[%clk 0:00:12]} 74. Ra3 {[%clk 0:00:31]}  Rd6 {[%clk 0:00:11]} 75. Kf2 {[%clk 0:00:30]}  Rd2+ {[%clk 0:00:11]} 76. Kf1 {[%clk 0:00:30]}  Rc2 {[%clk 0:00:11]} 77. Rb3 {[%clk 0:00:29]}  Rc1+ {[%clk 0:00:11]} 78. Kf2 {[%clk 0:00:28]}  Rc2+ {[%clk 0:00:12]} 79. Kf1 {[%clk 0:00:28]}  Rc1+ {[%clk 0:00:13]} 80. Kf2 {[%clk 0:00:28]}  Rc2+ {[%clk 0:00:14]} 81. Kf1 {[%clk 0:00:28]} 1/2-1/2


[Site "https://www.chess.com"]